bitfinex/quotes_SOLUSD_20251124
["timestamp","ask_amount","ask_price","bid_price","bid_amount"]
[1763961566617,0.15944597,133.39,133.37,14.87390525]
[1763961566950,0.15944597,133.39,133.38,12.26364284]
[1763961567532,0.15944597,133.39,133.38,11.51390525]
[1763961568307,0.15944597,133.39,133.38,19.01128116]
[1763961569438,0.15944597,133.39,133.38,19.76101875]
[1763961569805,0.15944597,133.39,133.38,0.74973759]
[1763961570010,0.15944597,133.39,133.38,11.51390525]
[1763961570544,0.15944597,133.39,133.38,19.01128116]
[1763961572233,0.83944597,133.39,133.38,11.51390525]
[1763961572420,0.15944597,133.39,133.38,7.49737591]
[1763961572764,0.15944597,133.39,133.38,19.01128116]
[1763961573230,0.15944597,133.39,133.37,10.85786708]
[1763961573430,0.83944597,133.39,133.38,11.51390525]
[1763961573636,0.15944597,133.39,133.38,11.51390525]
[1763961574018,0.15944597,133.39,133.38,12.26364284]
[1763961574544,0.15944597,133.39,133.38,19.76101875]
[1763961575316,0.14403906,133.41,133.39,11.51390525]
[1763961575820,0.14403906,133.41,133.4,3.36]
[1763961576538,0.14403906,133.41,133.4,22.37015712]
[1763961578315,0.29201745,133.41,133.4,22.37015712]
[1763961578737,0.29201745,133.41,133.4,23.1197823]
[1763961579316,0.14797839,133.41,133.4,23.1197823]
[1763961580050,0.14797839,133.41,133.4,14.87390525]
[1763961580271,0.82797839,133.41,133.4,14.87390525]
[1763961580429,0.82797839,133.41,133.4,11.51390525]
[1763961582243,0.14797839,133.41,133.4,19.01015712]
[1763961587342,0.86797839,133.41,133.4,11.51390525]
[1763961592668,0.86797839,133.41,133.39,4.50541349]
[1763961593532,0.86797839,133.41,133.38,4.50541349]
[1763961593733,0.86797839,133.41,133.37,4.50541349]
[1763961594267,4.50541349,133.4,133.32,7.50022282]
[1763961594436,4.50541349,133.4,133.35,4.50541349]
[1763961594639,18.12096,133.36,133.28,12.00829737]
[1763961594946,18.12096,133.36,133.32,4.50541349]
[1763961595132,0.72,133.35,133.32,4.50541349]
[1763961595758,0.72,133.35,133.34,4.50541349]
[1763961596541,0.72,133.35,133.34,11.5134561]
[1763961597041,0.72,133.35,133.33,11.5134561]
[1763961597945,0.72,133.35,133.34,11.5134561]
[1763961598334,0.88372109,133.35,133.34,11.5134561]
[1763961598552,0.88372109,133.35,133.33,11.5134561]
[1763961599967,0.88372109,133.35,133.32,11.5134561]
[1763961600553,0.88372109,133.35,133.31,11.5134561]
[1763961600753,0.88372109,133.35,133.32,11.5134561]
[1763961600968,0.88372109,133.35,133.34,11.5134561]
[1763961601365,0.16372109,133.35,133.34,12.2634186]
[1763961602272,0.16372109,133.35,133.34,19.76304361]
[1763961602868,0.16372109,133.35,133.34,12.2634186]
[1763961603071,0.88372109,133.35,133.34,11.5134561]
[1763961603855,0.88372109,133.35,133.33,11.5134561]
[1763961604070,0.88372109,133.35,133.32,14.8734561]
[1763961604254,0.88372109,133.35,133.31,11.5134561]
[1763961604762,0.88372109,133.35,133.34,7.51673894]
[1763961607162,0.16372109,133.35,133.34,7.51673894]
[1763961607763,0.88372109,133.35,133.34,7.51673894]
[1763961609478,0.16372109,133.35,133.34,15.01636395]
[1763961609654,0.16372109,133.35,133.34,7.51673894]
[1763961610867,0.16372109,133.35,133.34,10.87673894]
[1763961611070,0.16041826,133.36,133.34,10.87673894]
[1763961611274,0.15000305,133.39,133.37,50.0]
[1763961611488,0.15916424,133.42,133.38,18.37411485]
[1763961611787,0.15916424,133.42,133.39,7.51673894]
[1763961611990,0.15916424,133.42,133.4,15.03347788]
[1763961613358,0.1,133.49,133.41,7.49568997]
[1763961613574,0.1,133.49,133.42,10.87673894]
[1763961613890,0.1,133.49,133.48,7.51673894]
[1763961614045,0.1,133.49,133.48,10.87673894]
[1763961614557,0.1,133.49,133.48,3.36]
[1763961614753,0.1,133.49,133.48,10.87673894]
[1763961614754,0.82,133.49,133.48,10.87673894]
[1763961615173,0.1,133.49,133.48,10.87673894]
[1763961615349,0.82,133.49,133.48,10.87673894]
[1763961615755,0.1,133.49,133.48,10.87673894]
[1763961616157,0.81,133.55,133.48,18.368498]
[1763961616368,0.81,133.55,133.54,7.51673894]
[1763961616569,0.81,133.55,133.53,7.51673894]
[1763961616768,0.81,133.55,133.54,7.51673894]
[1763961618094,0.1,133.55,133.54,18.36513193]
[1763961618259,0.71,133.61,133.54,18.36513193]
[1763961618459,0.13802255,133.61,133.6,7.51673894]
[1763961618660,0.13802255,133.61,133.59,7.51673894]
[1763961618878,0.71,133.6,133.59,7.51673894]
[1763961619184,0.71,133.6,133.54,10.84839299]
[1763961619356,0.71,133.6,133.54,10.84821903]
[1763961619562,0.71,133.6,133.58,7.51673894]
[1763961619758,0.71,133.6,133.59,7.51673894]
[1763961620888,0.13802255,133.61,133.59,7.51673894]
[1763961621188,0.84802255,133.61,133.6,7.51673894]
[1763961621568,0.84802255,133.61,133.54,22.08098247]
[1763961621876,0.84802255,133.61,133.6,7.51673894]
[1763961622276,0.84802255,133.61,133.55,26.20741295]
[1763961622589,0.84802255,133.61,133.6,7.51673894]
[1763961623181,0.13802255,133.61,133.6,7.51673894]
[1763961623488,0.84802255,133.61,133.6,7.51673894]
[1763961623676,0.13802255,133.61,133.6,7.51673894]
[1763961624969,0.84802255,133.61,133.58,3.36]
[1763961625293,0.13802255,133.61,133.6,7.51673894]
[1763961625669,0.13802255,133.61,133.6,15.00176888]
[1763961626974,0.13802255,133.61,133.6,7.51673894]
[1763961627173,0.13802255,133.61,133.59,3.36]
[1763961627378,0.13802255,133.61,133.59,10.84538952]
[1763961627778,0.13802255,133.61,133.6,7.51673894]
[1763961627970,0.13475763,133.63,133.6,7.51673894]
[1763961627971,0.13475763,133.63,133.62,18.12096]
[1763961628297,0.71,133.71,133.62,75.63769894]
[1763961628487,0.71,133.71,133.7,7.51673894]
[1763961628886,0.71,133.71,133.65,18.12096]
[1763961629290,8.22673894,133.71,133.67,7.51673894]
[1763961629612,8.22673894,133.71,133.66,7.51673894]
[1763961629906,0.71,133.7,133.66,7.51673894]
[1763961630110,0.71,133.7,133.67,7.51673894]
[1763961631312,0.71,133.7,133.68,7.51673894]
[1763961631686,0.71,133.7,133.62,29.55350735]
[1763961632013,0.71,133.7,133.68,7.51673894]
[1763961633195,0.81,133.75,133.69,25.63769894]
[1763961633397,0.81,133.75,133.74,7.51673894]
[1763961633598,37.57458595,133.98,133.74,58.03769894]
[1763961633794,0.71,133.85,133.8,7.51673894]
[1763961634099,0.71,133.85,133.8,3.36]
[1763961634510,0.71,133.85,133.78,3.36]
[1763961634900,0.71,133.85,133.82,7.51673894]
[1763961635291,0.71,133.85,133.78,10.83470937]
[1763961635292,0.71,133.85,133.81,7.51673894]
[1763961635508,0.71,133.85,133.78,3.36]
[1763961635693,0.71,133.85,133.82,7.51673894]
[1763961636103,0.71,133.85,133.84,7.51673894]
[1763961636998,0.71,133.87,133.84,7.51673894]
[1763961637298,0.71,133.87,133.85,7.51673894]
[1763961637501,0.71,133.87,133.86,7.51673894]
[1763961637803,0.71,133.87,133.84,7.51673894]
[1763961638005,8.22673894,133.87,133.82,7.51673894]
[1763961638204,8.85829915,133.86,133.81,7.51673894]
[1763961638387,0.13951414,133.83,133.81,7.51673894]
[1763961638919,0.09227526,133.86,133.82,7.51673894]
[1763961639396,0.09227526,133.86,133.8,7.51673894]
[1763961639397,0.71,133.85,133.8,7.51673894]
[1763961639605,0.09227526,133.86,133.84,7.51673894]
[1763961639812,0.09227526,133.86,133.8,7.51673894]
[1763961640014,0.09227526,133.86,133.85,7.51673894]
[1763961641105,0.80227526,133.86,133.85,7.51673894]
[1763961642803,0.09227526,133.86,133.85,7.51673894]
[1763961643319,0.09227526,133.86,133.85,14.98778862]
[1763961643788,0.09227526,133.86,133.82,11.57956182]
[1763961643993,0.80227526,133.86,133.85,7.51673894]
[1763961644800,0.80227526,133.86,133.83,7.51673894]
[1763961646222,0.80227526,133.86,133.8,7.47381588]
[1763961646223,0.80227526,133.86,133.84,7.51673894]
[1763961646524,0.80227526,133.86,133.83,7.51673894]
[1763961646711,7.51673894,133.84,133.78,7.51673894]
[1763961647021,7.51673894,133.84,133.79,7.51673894]
[1763961647223,0.69,133.83,133.81,7.51673894]
[1763961647730,0.69,133.83,133.82,7.51673894]
[1763961648031,0.69,133.85,133.82,7.51673894]
[1763961648203,0.69,133.85,133.84,7.51673894]
[1763961648403,0.09227526,133.86,133.84,7.51673894]
[1763961648607,0.78227526,133.86,133.85,7.51673894]
[1763961649193,0.78227526,133.86,133.83,7.51673894]
[1763961649424,0.78227526,133.86,133.82,7.51673894]
[1763961649636,0.78227526,133.86,133.79,3.36]
[1763961649793,0.78227526,133.86,133.82,7.51673894]
[1763961649998,0.78227526,133.86,133.79,10.83425412]
[1763961650216,0.78227526,133.86,133.82,7.51673894]
[1763961650497,0.78227526,133.86,133.81,7.51673894]
[1763961650698,7.51673894,133.85,133.8,7.51673894]
[1763961650993,0.78227526,133.86,133.79,7.51673894]
[1763961651199,7.51673894,133.83,133.74,7.47673666]
[1763961651397,0.69,133.85,133.81,7.51673894]
[1763961651624,0.69,133.84,133.82,7.51673894]
[1763961651822,0.69,133.84,133.83,7.51673894]
[1763961652204,0.09227526,133.86,133.83,7.51673894]
[1763961652404,0.09227526,133.86,133.85,7.51673894]
[1763961652720,0.09227526,133.86,133.85,3.36]
[1763961652900,0.09227526,133.86,133.85,10.87673894]
[1763961653526,0.15203981,133.88,133.86,7.47049155]
[1763961653732,0.15203981,133.88,133.87,0.74699335]
[1763961653898,0.15203981,133.88,133.87,7.51673894]
[1763961655902,0.84203981,133.88,133.84,3.36]
[1763961656128,0.15203981,133.88,133.87,7.51673894]
[1763961658429,0.30916235,133.88,133.87,7.51673894]
[1763961659328,0.15712254,133.88,133.87,7.51673894]
[1763961659839,0.15712254,133.88,133.87,14.98667245]
[1763961659999,0.15712254,133.88,133.87,15.7336658]
[1763961661102,0.15712254,133.88,133.87,8.26373229]
[1763961661301,0.15712254,133.88,133.87,7.51673894]
[1763961661608,0.15712254,133.88,133.87,15.7336658]
[1763961661826,0.84712254,133.88,133.85,3.36]
[1763961662008,0.84712254,133.88,133.87,7.51673894]
[1763961663134,0.15712254,133.88,133.87,7.51673894]
[1763961663716,0.84712254,133.88,133.87,7.51673894]
[1763961664731,0.15712254,133.88,133.87,7.51673894]
[1763961665029,0.15712254,133.88,133.87,8.26373229]
[1763961665835,0.15712254,133.88,133.87,15.7336658]
[1763961666208,0.15712254,133.88,133.87,0.74699335]
[1763961666510,0.15712254,133.88,133.87,11.41673564]
[1763961666907,0.13770403,133.89,133.87,72.83347128]
[1763961667108,0.13770403,133.89,133.88,12.16367319]
[1763961667516,0.13770403,133.89,133.88,0.74693755]
[1763961667712,0.13770403,133.89,133.88,12.16367319]
[1763961667918,0.13770403,133.89,133.87,11.41673564]
[1763961667919,0.82770403,133.89,133.87,11.41673564]
[1763961668517,0.82770403,133.89,133.88,11.41673564]
[1763961669537,0.13770403,133.89,133.88,11.41673564]
[1763961670239,0.13770403,133.89,133.88,18.8861112]
[1763961671548,0.13770403,133.89,133.88,11.41673564]
[1763961671847,0.13770403,133.89,133.87,8.21691068]
[1763961671848,0.13770403,133.89,133.87,0.74699335]
[1763961672149,0.13770403,133.89,133.88,11.41673564]
[1763961673930,0.13770403,133.89,133.88,18.8861112]
[1763961674145,0.13770403,133.89,133.88,11.41673564]
[1763961675848,0.13770403,133.89,133.88,18.8861112]
[1763961676024,0.13770403,133.89,133.88,11.41673564]
[1763961677116,0.82770403,133.89,133.88,11.41673564]
[1763961677324,0.13770403,133.89,133.88,11.41673564]
[1763961677761,0.82770403,133.89,133.88,11.41673564]
[1763961678048,0.13770403,133.89,133.88,11.41673564]
[1763961678357,0.82770403,133.89,133.88,11.41673564]
[1763961678524,0.9688442,133.89,133.88,11.41673564]
[1763961679133,0.2788442,133.89,133.88,11.41673564]
[1763961679328,0.14114017,133.89,133.88,11.41673564]
[1763961679639,0.83114017,133.89,133.88,11.41673564]
[1763961679848,0.83114017,133.89,133.85,11.41673564]
[1763961680159,0.83114017,133.89,133.87,11.41673564]
[1763961680463,0.14114017,133.89,133.84,3.36]
[1763961680637,0.14114017,133.89,133.85,11.41673564]
[1763961680823,0.69,133.88,133.85,11.41673564]
[1763961681022,0.14114017,133.89,133.84,3.36]
[1763961681023,0.14114017,133.89,133.87,11.41673564]
[1763961681253,0.14114017,133.89,133.88,11.41673564]
[1763961681624,0.14114017,133.89,133.88,12.16367319]
[1763961682240,0.83114017,133.89,133.87,14.77673564]
[1763961682557,0.83114017,133.89,133.88,11.41673564]
[1763961683054,0.83114017,133.89,133.87,14.77673564]
[1763961683748,0.83114017,133.89,133.84,11.41673564]
[1763961683929,0.83114017,133.89,133.85,11.41673564]
[1763961684124,0.83114017,133.89,133.86,11.41673564]
[1763961684325,0.14114017,133.89,133.88,11.41673564]
[1763961684527,0.14114017,133.89,133.86,14.77673564]
[1763961684528,0.69,133.88,133.86,14.77673564]
[1763961684931,0.69,133.88,133.86,3.36]
[1763961685153,0.69,133.88,133.87,11.41673564]
[1763961685655,0.69,133.88,133.86,14.77673564]
[1763961686770,0.69,133.88,133.86,11.41673564]
[1763961686940,0.69,133.88,133.85,11.41673564]
[1763961687133,0.69,133.88,133.84,22.24824175]
[1763961687357,0.69,133.88,133.85,11.41673564]
[1763961687575,0.69,133.88,133.84,10.83150611]
[1763961687882,0.69,133.88,133.85,11.41673564]
[1763961688931,0.69,133.88,133.84,3.36]
[1763961689156,12.10673564,133.88,133.82,0.74727245]
[1763961689356,11.41673564,133.85,133.79,11.41673564]
[1763961689566,11.41673564,133.84,133.78,14.77673564]
[1763961689771,11.41673564,133.84,133.79,11.41673564]
[1763961689959,0.69,133.83,133.79,11.41673564]
[1763961690281,0.69,133.83,133.82,11.41673564]
[1763961690769,0.69,133.85,133.82,11.41673564]
[1763961690993,0.69,133.87,133.82,11.41673564]
[1763961691295,0.69,133.87,133.82,9.41673564]
[1763961691577,12.10673564,133.87,133.81,11.41673564]
[1763961691778,0.69,133.86,133.78,10.83466985]
[1763961692071,0.69,133.86,133.81,11.41673564]
[1763961693880,0.69,133.86,133.79,7.47440017]
[1763961694056,0.69,133.86,133.81,11.41673564]
[1763961694578,0.69,133.86,133.83,11.41673564]
[1763961694868,0.77270038,133.89,133.85,11.41673564]
[1763961694869,0.69,133.87,133.85,11.41673564]
[1763961695393,0.69,133.87,133.86,11.41673564]
[1763961695551,0.69,133.87,133.84,11.41673564]
[1763961696563,0.69,133.87,133.83,7.47216321]
[1763961696772,0.69,133.87,133.84,11.41673564]
[1763961696984,0.69,133.87,133.85,11.41673564]
[1763961697973,0.69,133.87,133.84,11.41673564]
[1763961698488,0.13758568,133.85,133.84,11.41673564]
[1763961698864,0.13758568,133.85,133.82,8.219832]
[1763961699170,0.13758568,133.85,133.84,11.41673564]
[1763961699574,0.13758568,133.85,133.82,8.21986853]
[1763961699770,0.13758568,133.85,133.84,11.41673564]
[1763961700886,0.13758568,133.85,133.83,7.47213828]
[1763961701068,0.82758568,133.85,133.83,7.47213828]
[1763961701386,0.13758568,133.85,133.84,11.41673564]
[1763961703187,0.82758568,133.85,133.82,11.41673564]
[1763961703389,0.82758568,133.85,133.81,14.77673564]
[1763961703884,0.82758568,133.85,133.81,22.25001134]
[1763961704893,0.82758568,133.85,133.82,11.41673564]
[1763961705077,0.85758568,133.85,133.84,11.41673564]
[1763961705394,0.85758568,133.85,133.82,11.41673564]
[1763961705982,0.85758568,133.85,133.81,10.83311597]
[1763961705983,0.85758568,133.85,133.81,14.77673564]
[1763961706182,0.85758568,133.85,133.81,11.41673564]
[1763961706890,12.27432132,133.85,133.8,11.41673564]
[1763961707189,0.71,133.84,133.79,14.77673564]
[1763961707363,0.71,133.84,133.79,11.41673564]
[1763961707568,0.71,133.84,133.8,11.41673564]
[1763961707769,12.12673564,133.84,133.79,11.41673564]
[1763961708197,0.71,133.83,133.79,11.41673564]
[1763961708575,0.71,133.83,133.81,11.41673564]
[1763961709588,0.71,133.83,133.78,8.22240893]
[1763961709768,0.71,133.83,133.81,11.41673564]
[1763961710380,0.71,133.83,133.78,8.22240893]
[1763961710586,0.71,133.83,133.81,11.41673564]
[1763961710786,0.71,133.83,133.78,26.90980614]
[1763961710976,0.71,133.83,133.8,11.41673564]
[1763961712076,0.71,133.83,133.79,11.41673564]
[1763961713194,0.71,133.83,133.78,7.47482346]
[1763961713504,0.71,133.83,133.77,10.8353147]
[1763961713690,0.71,133.83,133.79,11.41673564]
[1763961713886,11.41673564,133.82,133.77,14.77673564]
[1763961714110,11.41673564,133.79,133.73,0.2]
[1763961714305,0.71,133.82,133.74,11.41673564]
[1763961714507,0.71,133.82,133.76,11.41673564]
[1763961714811,0.71,133.82,133.77,11.41673564]
[1763961715707,11.41673564,133.8,133.75,14.77673564]
[1763961715874,11.41673564,133.79,133.75,3.36]
[1763961716078,11.41673564,133.79,133.73,11.61673564]
[1763961716289,0.71,133.78,133.73,0.2]
[1763961716489,0.71,133.78,133.73,11.61673564]
[1763961717384,0.71,133.78,133.73,0.2]
[1763961717385,11.41673564,133.77,133.73,0.2]
[1763961717897,0.71,133.76,133.73,0.2]
[1763961718484,0.13840311,133.74,133.73,11.61673564]
[1763961720399,0.13840311,133.74,133.73,12.30673564]
[1763961720712,0.13840311,133.74,133.73,23.14448932]
[1763961723208,0.13840311,133.74,133.73,73.14448932]
[1763961723408,0.15799359,133.76,133.75,18.12096]
[1763961723712,0.15799359,133.76,133.75,30.97535919]
[1763961724009,0.15799359,133.76,133.75,18.89337115]
[1763961724208,0.15799359,133.76,133.75,11.41673564]
[1763961724910,0.14000592,133.77,133.75,12.85439919]
[1763961725098,0.14000592,133.77,133.76,15.46673564]
[1763961725996,0.14000592,133.77,133.76,22.94281219]
[1763961726499,0.14000592,133.77,133.76,22.25281219]
[1763961726688,0.14000592,133.77,133.76,10.83607655]
[1763961726889,0.14000592,133.77,133.76,22.25281219]
[1763961728398,0.14000592,133.77,133.76,3.36]
[1763961728601,0.14000592,133.77,133.76,10.82552118]
[1763961728912,0.14000592,133.77,133.76,3.36]
[1763961729216,0.14000592,133.77,133.75,7.47647849]
[1763961730387,0.14000592,133.77,133.74,3.36]
[1763961730593,0.85000592,133.77,133.74,3.36]
[1763961731087,0.85000592,133.77,133.75,7.46552118]
[1763961732414,0.85000592,133.77,133.76,7.46552118]
[1763961732415,0.14000592,133.77,133.76,7.46552118]
[1763961732605,0.85000592,133.77,133.75,7.46552118]
[1763961733111,0.85000592,133.77,133.74,7.46552118]
[1763961733301,0.85000592,133.77,133.73,0.2]
[1763961733501,0.85000592,133.77,133.74,7.46552118]
[1763961733808,0.85000592,133.77,133.76,7.46552118]
[1763961734008,0.71,133.89,133.79,18.12096]
[1763961734207,0.71,133.89,133.77,1.99999999]
[1763961734208,0.71,133.91,133.88,7.46552118]
[1763961734388,0.71,133.9,133.86,7.46552118]
[1763961734594,0.71,133.9,133.85,3.36]
[1763961734791,8.17552118,133.9,133.85,10.82552118]
[1763961735312,0.65,133.89,133.85,7.46552118]
[1763961736017,0.65,133.89,133.86,7.46552118]
[1763961736690,0.65,133.89,133.88,7.46552118]
[1763961736930,0.65,133.89,133.87,7.46552118]
[1763961737629,0.68,133.92,133.88,7.46552118]
[1763961737812,0.68,133.91,133.89,7.46552118]
[1763961738292,0.68,133.91,133.9,7.46552118]
[1763961738494,0.83247744,133.91,133.9,7.46552118]
[1763961738731,0.83247744,133.91,133.89,7.46552118]
[1763961739420,0.15247744,133.91,133.9,7.46552118]
[1763961739797,0.83247744,133.91,133.9,7.46552118]
[1763961740695,0.83247744,133.91,133.89,7.46552118]
[1763961741821,0.83247744,133.91,133.86,3.36]
[1763961742005,0.83247744,133.91,133.87,7.46552118]
[1763961743105,0.83247744,133.91,133.88,7.46552118]
[1763961743707,0.33247744,133.91,133.86,3.36]
[1763961743902,7.60043162,133.92,133.87,7.46552118]
[1763961744111,0.13491044,133.92,133.88,7.46552118]
[1763961745823,0.68,133.91,133.88,7.46552118]
[1763961746327,8.09708139,133.9,133.85,7.46552118]
[1763961746699,0.68,133.89,133.85,7.46552118]
[1763961746898,8.14552118,133.89,133.85,7.46552118]
[1763961747100,0.68,133.89,133.85,7.46552118]
[1763961747397,0.68,133.88,133.85,7.46552118]
[1763961747619,7.46552118,133.87,133.82,10.80552118]
[1763961747821,7.46552118,133.87,133.82,7.46552118]
[1763961748000,0.68,133.86,133.82,7.46552118]
[1763961748201,0.68,133.86,133.83,7.46552118]
[1763961749627,8.14552118,133.86,133.79,3.34]
[1763961749813,7.46552118,133.84,133.79,7.46552118]
[1763961750301,7.46552118,133.82,133.78,7.46552118]
[1763961750501,7.46552118,133.82,133.77,7.46552118]
[1763961750701,8.14552118,133.81,133.77,7.46552118]
[1763961750930,20.12095999,133.87,133.73,7.67762591]
[1763961750931,8.14552118,133.8,133.73,7.67762591]
[1763961751100,7.46552118,133.77,133.73,0.2]
[1763961751524,8.14552118,133.76,133.73,0.2]
[1763961751703,8.14552118,133.76,133.71,30.22788016]
[1763961751704,7.46552118,133.74,133.68,0.2]
[1763961751911,7.46552118,133.72,133.68,0.2]
[1763961752227,7.46552118,133.71,133.68,0.2]
[1763961752735,0.68,133.7,133.68,0.2]
[1763961752940,8.14552118,133.7,133.68,0.2]
[1763961753125,7.46552118,133.69,133.68,0.2]
[1763961753311,7.46552118,133.66,133.65,0.2]
[1763961753509,0.68,133.66,133.65,0.2]
[1763961754622,7.46552118,133.68,133.65,0.2]
[1763961754623,0.68,133.68,133.65,0.2]
[1763961754827,0.68,133.67,133.66,7.46552118]
[1763961755009,0.68,133.69,133.66,7.46552118]
[1763961756826,0.68,133.69,133.65,0.2]
[1763961757028,0.68,133.69,133.66,7.46552118]
[1763961758034,8.14552118,133.69,133.65,0.2]
[1763961758402,0.150742,133.66,133.65,0.2]
[1763961758831,0.830742,133.66,133.65,0.2]
[1763961759036,8.29626318,133.66,133.62,0.2]
[1763961759243,0.830742,133.66,133.62,0.2]
[1763961759547,0.68,133.65,133.62,0.2]
[1763961759714,0.68,133.65,133.62,7.66552118]
[1763961761032,0.68,133.65,133.63,7.46552118]
[1763961761223,0.68,133.65,133.62,0.2]
[1763961761719,0.68,133.65,133.62,7.66552118]
[1763961762535,0.150742,133.66,133.64,7.46552118]
[1763961762826,0.830742,133.66,133.64,7.46552118]
[1763961763442,0.830742,133.66,133.63,7.46552118]
[1763961763621,8.29626318,133.66,133.62,0.2]
[1763961764120,0.68,133.65,133.62,7.66552118]
[1763961764331,0.68,133.65,133.63,7.46552118]
[1763961764636,0.150742,133.66,133.64,7.46552118]
[1763961764841,0.830742,133.66,133.64,7.46552118]
[1763961765442,0.830742,133.66,133.62,7.66552118]
[1763961765635,0.150742,133.66,133.65,7.46552118]
[1763961766823,0.840742,133.66,133.64,7.46552118]
[1763961767042,0.840742,133.66,133.62,0.2]
[1763961767246,7.46552118,133.65,133.62,0.2]
[1763961767449,8.30626318,133.66,133.62,0.2]
[1763961767741,0.69,133.65,133.63,7.46552118]
[1763961768643,0.69,133.65,133.62,0.2]
[1763961768821,0.69,133.65,133.63,7.46552118]
[1763961769023,0.150742,133.66,133.64,7.46552118]
[1763961769235,0.150742,133.66,133.65,7.46552118]
[1763961769745,0.150742,133.66,133.64,7.46552118]
[1763961769937,0.840742,133.66,133.64,7.46552118]
[1763961770118,0.150742,133.66,133.64,7.46552118]
[1763961770318,0.150742,133.66,133.65,7.46552118]
[1763961771960,0.840742,133.66,133.64,7.46552118]
[1763961772122,0.840742,133.66,133.63,7.46552118]
[1763961772319,0.840742,133.66,133.64,7.46552118]
[1763961772621,0.150742,133.66,133.65,7.46552118]
[1763961773727,0.150742,133.66,133.64,7.46552118]
[1763961773927,0.840742,133.66,133.64,7.46552118]
[1763961774656,0.840742,133.66,133.65,7.46552118]
[1763961775051,0.840742,133.66,133.64,7.46552118]
[1763961775825,0.150742,133.66,133.65,7.46552118]
[1763961776027,0.840742,133.66,133.65,7.46552118]
[1763961776458,0.840742,133.66,133.6,7.48485686]
[1763961776619,0.840742,133.66,133.63,7.46552118]
[1763961776956,0.840742,133.66,133.59,10.84556265]
[1763961776957,8.30626318,133.66,133.59,3.36]
[1763961777162,8.30626318,133.66,133.61,7.46552118]
[1763961777458,0.69,133.65,133.59,3.36]
[1763961777656,0.69,133.65,133.61,7.46552118]
[1763961778539,0.13889265,133.62,133.61,7.46552118]
[1763961780159,0.13889265,133.62,133.59,3.36]
[1763961780463,0.15469943,133.64,133.6,26.33498417]
[1763961780621,0.15469943,133.64,133.63,7.46552118]
[1763961780822,0.15469943,133.64,133.63,7.53552118]
[1763961781051,0.15469943,133.64,133.63,7.46552118]
[1763961781222,0.15469943,133.64,133.63,7.53552118]
[1763961781223,0.08469943,133.64,133.63,7.53552118]
[1763961781546,0.14615631,133.66,133.64,75.60374958]
[1763961781748,0.14615631,133.66,133.65,8.21374415]
[1763961781937,0.1503266,133.68,133.66,25.58648118]
[1763961782125,0.1503266,133.68,133.67,7.46552118]
[1763961782633,0.1503266,133.68,133.64,26.18976353]
[1763961782831,0.1503266,133.68,133.67,7.46552118]
[1763961785626,0.16274909,133.7,133.68,7.48055056]
[1763961785832,0.16274909,133.7,133.68,14.94607174]
[1763961786651,0.16274909,133.7,133.69,7.46552118]
[1763961787540,0.1394034,133.71,133.69,22.41103338]
[1763961787745,0.1394034,133.71,133.7,18.29104236]
[1763961788145,0.1394034,133.71,133.7,3.36]
[1763961788350,0.1394034,133.71,133.7,10.82552118]
[1763961789866,0.1394034,133.71,133.7,7.46552118]
[1763961790051,0.8294034,133.71,133.7,7.46552118]
[1763961790564,0.1394034,133.71,133.7,11.44961832]
[1763961790759,0.8294034,133.71,133.7,11.44961832]
[1763961791945,0.1394034,133.71,133.7,11.44961832]
[1763961792147,0.8294034,133.71,133.7,11.44961832]
[1763961794484,0.1394034,133.71,133.7,11.44961832]
[1763961794967,0.1394034,133.71,133.68,7.48039869]
[1763961795141,0.1394034,133.71,133.7,11.44961832]
[1763961796346,0.1394034,133.71,133.68,7.48039869]
[1763961796572,0.1394034,133.71,133.7,11.44961832]
[1763961796864,0.1394034,133.71,133.7,81.02904988]
[1763961797051,0.1394034,133.71,133.7,84.38904988]
[1763961797462,0.1394034,133.71,133.7,65.46]
[1763961797766,0.1394034,133.71,133.7,76.90961832]
[1763961797991,0.1394034,133.71,133.7,73.54961832]
[1763961798164,0.8594034,133.71,133.7,62.1]
[1763961798363,0.8594034,133.71,133.7,73.54961832]
[1763961798684,1.01875608,133.71,133.7,11.44961832]
[1763961799371,0.87935268,133.71,133.7,11.44961832]
[1763961799758,0.87935268,133.71,133.69,11.44961832]
[1763961800482,0.15935268,133.71,133.7,14.80961832]
[1763961801254,0.15935268,133.71,133.7,22.28904988]
[1763961803179,0.15935268,133.71,133.7,72.28904988]
[1763961803355,0.16268548,133.72,133.7,72.28904988]